{"text_format":"1","workbook":"xlsx","n_sheets":6,"sheets":["Главная","МатЛист","Склад","Приходы","Проекты","Вспомогательный"],"not_rendered":{"charts":0,"images":4,"macros":1,"external_links":0,"defined_names":3,"comments":0,"pivot_tables":2},"unopened":[],"bounds":{"document_bytes":16777216,"sheet_cells":100000,"rows_first":2000,"rows_last":500,"rows_between":2000,"halvings":0,"cell_chars":16384,"cell_head_chars":4096},"cells_cut":0,"cells_raw":0,"read":"whole","date_system":"1900"}

{"sheet":"Главная","index":0,"n_rows":6,"n_cols":5,"rows_kept":6,"cut":false,"hidden":false,"merged":[]}
[]
["Проекты",null,null,null,"Остатков на ЮНИТ-ДЗ"]
["(пусто)",null,null,null,0]
["(пусто)"]
["(пусто) Итог"]
["Общий итог"]

{"sheet":"МатЛист","index":1,"n_rows":34,"n_cols":6,"rows_kept":34,"cut":false,"hidden":false,"merged":[]}
["    №","Комплектующее","Код 1С","Артикул","Ед.","Кол-во"]
["1","Винт М4х6 DIN 7985","14188"," ","шт",2]
["2","Гайка М4 DIN 439","13779"," ","шт",2]
["3","Гайка М4 DIN 985","11453"," ","шт",16]
["4","Гофроящик 170х170х100","13270"," ","шт",1]
["5","Кабель FRC-20 плоский","12673","FRC-20","м",0.15]
["6","Коннектор ЮТКБ.753324.701","11904","ЮТКБ.753324.701","шт",1]
["7","Крепеж на рейку FM 4/TS35","27","0687900000-W","шт",2]
["8","Крышка ДЗ ЮТКБ.301261.701","12077","ЮТКБ.301261.701","шт",1]
["9","Модуль процессора ЮТКБ.687254.703","13691","ЮТКБ.687254.703","шт",1]
["10","Наклейка Тип-ПСт 10х40","13699","0960.05.01","шт",1]
["11","Основание ДЗ ЮТКБ.301261.702","13262","ЮТКБ.301261.702","шт",1]
["12","Пакет 200х220х100мкм","14867"," ","шт",1]
["13","Пакет ZIPLOK 100х100мм","13906"," ","шт",1]
["14","Пакет ZIPLOK 100х150мм","13908"," ","шт",1]
["15","Панель ДЗ ЮТКБ.754463.703","13365","ЮТКБ.754463.703","шт",1]
["16","Планка ДЗ ЮТКБ.745217.703","12082","ДЗ ЮТКБ.745217.703","шт",1]
["17","Пружина 0,5х4хх11,1 сжатия","13261"," ","шт",1]
["18","Разъем XG4M2030T Omron","12911","XG4M2030T","шт",2]
["19","Саморез 2,9х6,5 DIN 7981 F","11455"," ","шт",3]
["20","Саморез 3х6 DIN 7500 C-Z","14605"," ","шт",3]
["21","Саморез 3х8 DIN 7500","14602"," ","шт",3]
["22","Соединитель  электрический BL 3.50/04/180F SN OR BX","13624","1606660000","шт",1]
["23","Соединитель  электрический BLZP 5.08HC/02/180F SN OR BX","13627","1944090000","шт",1]
["24","Соединитель  электрический BLZP 5.08HC/06/180F SN OR BX","13626","1944130000","шт",1]
["25","Соединитель  электрический BLZP 5.08HC/10/180F SN OR BX","13625","1944170000","шт",1]
["26","Стойка гладкая 4-6 (CYX LED-6.3G*6)","13806","13819","шт",4]
["27","Стойка гладкая 4-7 нейлон-66(UL)","13807","13820","шт",4]
["28","Субмодуль дискретного входа ЮТКБ.687253.711-04","19534","ЮТКБ.687253.711-04","шт",2]
["29","Субмодуль оптоприемника ЮТКБ.687241.701","14481"," ","шт",4]
["30","Шайба М4,3 тип A/J  DIN 6798","13169"," ","шт",1]
["31","Этикетка ЮТКБ.754349.701","15227","ЮТКБ.754349.701","шт",1]
["32","Этикетка ЮТКБ.754349.702","15228","ЮТКБ.754349.702","шт",1]
["33","Модуль питания ЮТКБ.687254.702","13690","ЮТКБ.687254.702","шт",1]

{"sheet":"Склад","index":2,"n_rows":34,"n_cols":8,"rows_kept":34,"cut":false,"hidden":false,"merged":[]}
["Комплектующее","Код 1С","Артикул","Ед.","Кол-во","Цена","Сумма","На какое колич. ЮНИТ-ДЗ"]
[{"$f":"МатЛист[[#This Row],[Комплектующее]]","v":"Винт М4х6 DIN 7985"},{"$f":"МатЛист[[#This Row],[Код 1С]]","v":"14188"},{"$f":"МатЛист[[#This Row],[Артикул]]","v":" "},{"$f":"МатЛист[[#This Row],[Ед.]]","v":"шт"},{"$f":"SUMIF(Приходы!A:A,Всего[[#This Row],[Комплектующее]],Приходы!B:B)-(SUM(Проекты!D:D)*МатЛист[[#This Row],[Кол-во]])","v":0},0.64,{"$f":"Всего[[#This Row],[Цена]]*Всего[[#This Row],[Кол-во]]","v":0},{"$f":"Всего[[#This Row],[Кол-во]]/МатЛист[[#This Row],[Кол-во]]","v":0}]
[{"$f":"МатЛист[[#This Row],[Комплектующее]]","v":"Гайка М4 DIN 439"},"13779"," ","шт",{"$f":"SUMIF(Приходы!A:A,Всего[[#This Row],[Комплектующее]],Приходы!B:B)-(SUM(Проекты!D:D)*МатЛист[[#This Row],[Кол-во]])","v":114},0.49,{"$f":"Всего[[#This Row],[Цена]]*Всего[[#This Row],[Кол-во]]","v":55.86},{"$f":"Всего[[#This Row],[Кол-во]]/МатЛист[[#This Row],[Кол-во]]","v":57}]
[{"$f":"МатЛист[[#This Row],[Комплектующее]]","v":"Гайка М4 DIN 985"},"11453"," ","шт",{"$f":"SUMIF(Приходы!A:A,Всего[[#This Row],[Комплектующее]],Приходы!B:B)-(SUM(Проекты!D:D)*МатЛист[[#This Row],[Кол-во]])","v":0},0.4,{"$f":"Всего[[#This Row],[Цена]]*Всего[[#This Row],[Кол-во]]","v":0},{"$f":"Всего[[#This Row],[Кол-во]]/МатЛист[[#This Row],[Кол-во]]","v":0}]
[{"$f":"МатЛист[[#This Row],[Комплектующее]]","v":"Гофроящик 170х170х100"},"13270"," ","шт",{"$f":"SUMIF(Приходы!A:A,Всего[[#This Row],[Комплектующее]],Приходы!B:B)-(SUM(Проекты!D:D)*МатЛист[[#This Row],[Кол-во]])","v":0},5.21,{"$f":"Всего[[#This Row],[Цена]]*Всего[[#This Row],[Кол-во]]","v":0},{"$f":"Всего[[#This Row],[Кол-во]]/МатЛист[[#This Row],[Кол-во]]","v":0}]
[{"$f":"МатЛист[[#This Row],[Комплектующее]]","v":"Кабель FRC-20 плоский"},"12673","FRC-20","м",{"$f":"SUMIF(Приходы!A:A,Всего[[#This Row],[Комплектующее]],Приходы!B:B)-(SUM(Проекты!D:D)*МатЛист[[#This Row],[Кол-во]])","v":1211},34.33,{"$f":"Всего[[#This Row],[Цена]]*Всего[[#This Row],[Кол-во]]","v":41573.629999999997},{"$f":"Всего[[#This Row],[Кол-во]]/МатЛист[[#This Row],[Кол-во]]","v":8073.3333333333339}]
[{"$f":"МатЛист[[#This Row],[Комплектующее]]","v":"Коннектор ЮТКБ.753324.701"},"11904","ЮТКБ.753324.701","шт",{"$f":"SUMIF(Приходы!A:A,Всего[[#This Row],[Комплектующее]],Приходы!B:B)-(SUM(Проекты!D:D)*МатЛист[[#This Row],[Кол-во]])","v":0},19.12,{"$f":"Всего[[#This Row],[Цена]]*Всего[[#This Row],[Кол-во]]","v":0},{"$f":"Всего[[#This Row],[Кол-во]]/МатЛист[[#This Row],[Кол-во]]","v":0}]
[{"$f":"МатЛист[[#This Row],[Комплектующее]]","v":"Крепеж на рейку FM 4/TS35"},"27","0687900000-W","шт",{"$f":"SUMIF(Приходы!A:A,Всего[[#This Row],[Комплектующее]],Приходы!B:B)-(SUM(Проекты!D:D)*МатЛист[[#This Row],[Кол-во]])","v":0},29.85,{"$f":"Всего[[#This Row],[Цена]]*Всего[[#This Row],[Кол-во]]","v":0},{"$f":"Всего[[#This Row],[Кол-во]]/МатЛист[[#This Row],[Кол-во]]","v":0}]
[{"$f":"МатЛист[[#This Row],[Комплектующее]]","v":"Крышка ДЗ ЮТКБ.301261.701"},"12077","ЮТКБ.301261.701","шт",{"$f":"SUMIF(Приходы!A:A,Всего[[#This Row],[Комплектующее]],Приходы!B:B)-(SUM(Проекты!D:D)*МатЛист[[#This Row],[Кол-во]])","v":0},429.07,{"$f":"Всего[[#This Row],[Цена]]*Всего[[#This Row],[Кол-во]]","v":0},{"$f":"Всего[[#This Row],[Кол-во]]/МатЛист[[#This Row],[Кол-во]]","v":0}]
[{"$f":"МатЛист[[#This Row],[Комплектующее]]","v":"Модуль процессора ЮТКБ.687254.703"},"13691","ЮТКБ.687254.703","шт",{"$f":"SUMIF(Приходы!A:A,Всего[[#This Row],[Комплектующее]],Приходы!B:B)-(SUM(Проекты!D:D)*МатЛист[[#This Row],[Кол-во]])","v":0},3276.61,{"$f":"Всего[[#This Row],[Цена]]*Всего[[#This Row],[Кол-во]]","v":0},{"$f":"Всего[[#This Row],[Кол-во]]/МатЛист[[#This Row],[Кол-во]]","v":0}]
[{"$f":"МатЛист[[#This Row],[Комплектующее]]","v":"Наклейка Тип-ПСт 10х40"},"13699","0960.05.01","шт",{"$f":"SUMIF(Приходы!A:A,Всего[[#This Row],[Комплектующее]],Приходы!B:B)-(SUM(Проекты!D:D)*МатЛист[[#This Row],[Кол-во]])","v":0},1.46,{"$f":"Всего[[#This Row],[Цена]]*Всего[[#This Row],[Кол-во]]","v":0},{"$f":"Всего[[#This Row],[Кол-во]]/МатЛист[[#This Row],[Кол-во]]","v":0}]
[{"$f":"МатЛист[[#This Row],[Комплектующее]]","v":"Основание ДЗ ЮТКБ.301261.702"},"13262","ЮТКБ.301261.702","шт",{"$f":"SUMIF(Приходы!A:A,Всего[[#This Row],[Комплектующее]],Приходы!B:B)-(SUM(Проекты!D:D)*МатЛист[[#This Row],[Кол-во]])","v":0},342.3,{"$f":"Всего[[#This Row],[Цена]]*Всего[[#This Row],[Кол-во]]","v":0},{"$f":"Всего[[#This Row],[Кол-во]]/МатЛист[[#This Row],[Кол-во]]","v":0}]
[{"$f":"МатЛист[[#This Row],[Комплектующее]]","v":"Пакет 200х220х100мкм"},"14867"," ","шт",{"$f":"SUMIF(Приходы!A:A,Всего[[#This Row],[Комплектующее]],Приходы!B:B)-(SUM(Проекты!D:D)*МатЛист[[#This Row],[Кол-во]])","v":0},1.59,{"$f":"Всего[[#This Row],[Цена]]*Всего[[#This Row],[Кол-во]]","v":0},{"$f":"Всего[[#This Row],[Кол-во]]/МатЛист[[#This Row],[Кол-во]]","v":0}]
[{"$f":"МатЛист[[#This Row],[Комплектующее]]","v":"Пакет ZIPLOK 100х100мм"},"13906"," ","шт",{"$f":"SUMIF(Приходы!A:A,Всего[[#This Row],[Комплектующее]],Приходы!B:B)-(SUM(Проекты!D:D)*МатЛист[[#This Row],[Кол-во]])","v":0},0.48,{"$f":"Всего[[#This Row],[Цена]]*Всего[[#This Row],[Кол-во]]","v":0},{"$f":"Всего[[#This Row],[Кол-во]]/МатЛист[[#This Row],[Кол-во]]","v":0}]
[{"$f":"МатЛист[[#This Row],[Комплектующее]]","v":"Пакет ZIPLOK 100х150мм"},"13908"," ","шт",{"$f":"SUMIF(Приходы!A:A,Всего[[#This Row],[Комплектующее]],Приходы!B:B)-(SUM(Проекты!D:D)*МатЛист[[#This Row],[Кол-во]])","v":0},1.72,{"$f":"Всего[[#This Row],[Цена]]*Всего[[#This Row],[Кол-во]]","v":0},{"$f":"Всего[[#This Row],[Кол-во]]/МатЛист[[#This Row],[Кол-во]]","v":0}]
[{"$f":"МатЛист[[#This Row],[Комплектующее]]","v":"Панель ДЗ ЮТКБ.754463.703"},"13365","ЮТКБ.754463.703","шт",{"$f":"SUMIF(Приходы!A:A,Всего[[#This Row],[Комплектующее]],Приходы!B:B)-(SUM(Проекты!D:D)*МатЛист[[#This Row],[Кол-во]])","v":0},112.73,{"$f":"Всего[[#This Row],[Цена]]*Всего[[#This Row],[Кол-во]]","v":0},{"$f":"Всего[[#This Row],[Кол-во]]/МатЛист[[#This Row],[Кол-во]]","v":0}]
[{"$f":"МатЛист[[#This Row],[Комплектующее]]","v":"Планка ДЗ ЮТКБ.745217.703"},"12082","ДЗ ЮТКБ.745217.703","шт",{"$f":"SUMIF(Приходы!A:A,Всего[[#This Row],[Комплектующее]],Приходы!B:B)-(SUM(Проекты!D:D)*МатЛист[[#This Row],[Кол-во]])","v":0},44.12,{"$f":"Всего[[#This Row],[Цена]]*Всего[[#This Row],[Кол-во]]","v":0},{"$f":"Всего[[#This Row],[Кол-во]]/МатЛист[[#This Row],[Кол-во]]","v":0}]
[{"$f":"МатЛист[[#This Row],[Комплектующее]]","v":"Пружина 0,5х4хх11,1 сжатия"},"13261"," ","шт",{"$f":"SUMIF(Приходы!A:A,Всего[[#This Row],[Комплектующее]],Приходы!B:B)-(SUM(Проекты!D:D)*МатЛист[[#This Row],[Кол-во]])","v":0},4.1500000000000004,{"$f":"Всего[[#This Row],[Цена]]*Всего[[#This Row],[Кол-во]]","v":0},{"$f":"Всего[[#This Row],[Кол-во]]/МатЛист[[#This Row],[Кол-во]]","v":0}]
[{"$f":"МатЛист[[#This Row],[Комплектующее]]","v":"Разъем XG4M2030T Omron"},"12907","XG4C2031","шт",{"$f":"SUMIF(Приходы!A:A,Всего[[#This Row],[Комплектующее]],Приходы!B:B)-(SUM(Проекты!D:D)*МатЛист[[#This Row],[Кол-во]])","v":0},71.72,{"$f":"Всего[[#This Row],[Цена]]*Всего[[#This Row],[Кол-во]]","v":0},{"$f":"Всего[[#This Row],[Кол-во]]/МатЛист[[#This Row],[Кол-во]]","v":0}]
[{"$f":"МатЛист[[#This Row],[Комплектующее]]","v":"Саморез 2,9х6,5 DIN 7981 F"},"12910","XG4C2034","шт",{"$f":"SUMIF(Приходы!A:A,Всего[[#This Row],[Комплектующее]],Приходы!B:B)-(SUM(Проекты!D:D)*МатЛист[[#This Row],[Кол-во]])","v":0},72.150000000000006,{"$f":"Всего[[#This Row],[Цена]]*Всего[[#This Row],[Кол-во]]","v":0},{"$f":"Всего[[#This Row],[Кол-во]]/МатЛист[[#This Row],[Кол-во]]","v":0}]
[{"$f":"МатЛист[[#This Row],[Комплектующее]]","v":"Саморез 3х6 DIN 7500 C-Z"},"12911","XG4M2030T","шт",{"$f":"SUMIF(Приходы!A:A,Всего[[#This Row],[Комплектующее]],Приходы!B:B)-(SUM(Проекты!D:D)*МатЛист[[#This Row],[Кол-во]])","v":0},70.680000000000007,{"$f":"Всего[[#This Row],[Цена]]*Всего[[#This Row],[Кол-во]]","v":0},{"$f":"Всего[[#This Row],[Кол-во]]/МатЛист[[#This Row],[Кол-во]]","v":0}]
[{"$f":"МатЛист[[#This Row],[Комплектующее]]","v":"Саморез 3х8 DIN 7500"},"11455"," ","шт",{"$f":"SUMIF(Приходы!A:A,Всего[[#This Row],[Комплектующее]],Приходы!B:B)-(SUM(Проекты!D:D)*МатЛист[[#This Row],[Кол-во]])","v":0},0.54,{"$f":"Всего[[#This Row],[Цена]]*Всего[[#This Row],[Кол-во]]","v":0},{"$f":"Всего[[#This Row],[Кол-во]]/МатЛист[[#This Row],[Кол-во]]","v":0}]
[{"$f":"МатЛист[[#This Row],[Комплектующее]]","v":"Соединитель  электрический BL 3.50/04/180F SN OR BX"},"14605"," ","шт",{"$f":"SUMIF(Приходы!A:A,Всего[[#This Row],[Комплектующее]],Приходы!B:B)-(SUM(Проекты!D:D)*МатЛист[[#This Row],[Кол-во]])","v":0},0.88,{"$f":"Всего[[#This Row],[Цена]]*Всего[[#This Row],[Кол-во]]","v":0},{"$f":"Всего[[#This Row],[Кол-во]]/МатЛист[[#This Row],[Кол-во]]","v":0}]
[{"$f":"МатЛист[[#This Row],[Комплектующее]]","v":"Соединитель  электрический BLZP 5.08HC/02/180F SN OR BX"},"14602"," ","шт",{"$f":"SUMIF(Приходы!A:A,Всего[[#This Row],[Комплектующее]],Приходы!B:B)-(SUM(Проекты!D:D)*МатЛист[[#This Row],[Кол-во]])","v":0},1.02,{"$f":"Всего[[#This Row],[Цена]]*Всего[[#This Row],[Кол-во]]","v":0},{"$f":"Всего[[#This Row],[Кол-во]]/МатЛист[[#This Row],[Кол-во]]","v":0}]
[{"$f":"МатЛист[[#This Row],[Комплектующее]]","v":"Соединитель  электрический BLZP 5.08HC/06/180F SN OR BX"},"13624","1606660000","шт",{"$f":"SUMIF(Приходы!A:A,Всего[[#This Row],[Комплектующее]],Приходы!B:B)-(SUM(Проекты!D:D)*МатЛист[[#This Row],[Кол-во]])","v":15},41.33,{"$f":"Всего[[#This Row],[Цена]]*Всего[[#This Row],[Кол-во]]","v":619.94999999999993},{"$f":"Всего[[#This Row],[Кол-во]]/МатЛист[[#This Row],[Кол-во]]","v":15}]
[{"$f":"МатЛист[[#This Row],[Комплектующее]]","v":"Соединитель  электрический BLZP 5.08HC/10/180F SN OR BX"},"13627","1944090000","шт",{"$f":"SUMIF(Приходы!A:A,Всего[[#This Row],[Комплектующее]],Приходы!B:B)-(SUM(Проекты!D:D)*МатЛист[[#This Row],[Кол-во]])","v":0},23.2,{"$f":"Всего[[#This Row],[Цена]]*Всего[[#This Row],[Кол-во]]","v":0},{"$f":"Всего[[#This Row],[Кол-во]]/МатЛист[[#This Row],[Кол-во]]","v":0}]
[{"$f":"МатЛист[[#This Row],[Комплектующее]]","v":"Стойка гладкая 4-6 (CYX LED-6.3G*6)"},"13626","1944130000","шт",{"$f":"SUMIF(Приходы!A:A,Всего[[#This Row],[Комплектующее]],Приходы!B:B)-(SUM(Проекты!D:D)*МатЛист[[#This Row],[Кол-во]])","v":0},59.18,{"$f":"Всего[[#This Row],[Цена]]*Всего[[#This Row],[Кол-во]]","v":0},{"$f":"Всего[[#This Row],[Кол-во]]/МатЛист[[#This Row],[Кол-во]]","v":0}]
[{"$f":"МатЛист[[#This Row],[Комплектующее]]","v":"Стойка гладкая 4-7 нейлон-66(UL)"},"13625","1944170000","шт",{"$f":"SUMIF(Приходы!A:A,Всего[[#This Row],[Комплектующее]],Приходы!B:B)-(SUM(Проекты!D:D)*МатЛист[[#This Row],[Кол-во]])","v":0},95.47,{"$f":"Всего[[#This Row],[Цена]]*Всего[[#This Row],[Кол-во]]","v":0},{"$f":"Всего[[#This Row],[Кол-во]]/МатЛист[[#This Row],[Кол-во]]","v":0}]
[{"$f":"МатЛист[[#This Row],[Комплектующее]]","v":"Субмодуль дискретного входа ЮТКБ.687253.711-04"},"13621","1607060000","шт",{"$f":"SUMIF(Приходы!A:A,Всего[[#This Row],[Комплектующее]],Приходы!B:B)-(SUM(Проекты!D:D)*МатЛист[[#This Row],[Кол-во]])","v":0},21.35,{"$f":"Всего[[#This Row],[Цена]]*Всего[[#This Row],[Кол-во]]","v":0},{"$f":"Всего[[#This Row],[Кол-во]]/МатЛист[[#This Row],[Кол-во]]","v":0}]
[{"$f":"МатЛист[[#This Row],[Комплектующее]]","v":"Субмодуль оптоприемника ЮТКБ.687241.701"},"13623","1148740000","шт",{"$f":"SUMIF(Приходы!A:A,Всего[[#This Row],[Комплектующее]],Приходы!B:B)-(SUM(Проекты!D:D)*МатЛист[[#This Row],[Кол-во]])","v":0},26.92,{"$f":"Всего[[#This Row],[Цена]]*Всего[[#This Row],[Кол-во]]","v":0},{"$f":"Всего[[#This Row],[Кол-во]]/МатЛист[[#This Row],[Кол-во]]","v":0}]
[{"$f":"МатЛист[[#This Row],[Комплектующее]]","v":"Шайба М4,3 тип A/J  DIN 6798"},"13622","1148880000","шт",{"$f":"SUMIF(Приходы!A:A,Всего[[#This Row],[Комплектующее]],Приходы!B:B)-(SUM(Проекты!D:D)*МатЛист[[#This Row],[Кол-во]])","v":0},38.56,{"$f":"Всего[[#This Row],[Цена]]*Всего[[#This Row],[Кол-во]]","v":0},{"$f":"Всего[[#This Row],[Кол-во]]/МатЛист[[#This Row],[Кол-во]]","v":0}]
[{"$f":"МатЛист[[#This Row],[Комплектующее]]","v":"Этикетка ЮТКБ.754349.701"},"12643","1148610000","шт",{"$f":"SUMIF(Приходы!A:A,Всего[[#This Row],[Комплектующее]],Приходы!B:B)-(SUM(Проекты!D:D)*МатЛист[[#This Row],[Кол-во]])","v":0},13.89,{"$f":"Всего[[#This Row],[Цена]]*Всего[[#This Row],[Кол-во]]","v":0},{"$f":"Всего[[#This Row],[Кол-во]]/МатЛист[[#This Row],[Кол-во]]","v":0}]
[{"$f":"МатЛист[[#This Row],[Комплектующее]]","v":"Этикетка ЮТКБ.754349.702"},"13806","13819","шт",{"$f":"SUMIF(Приходы!A:A,Всего[[#This Row],[Комплектующее]],Приходы!B:B)-(SUM(Проекты!D:D)*МатЛист[[#This Row],[Кол-во]])","v":0},0.8,{"$f":"Всего[[#This Row],[Цена]]*Всего[[#This Row],[Кол-во]]","v":0},{"$f":"Всего[[#This Row],[Кол-во]]/МатЛист[[#This Row],[Кол-во]]","v":0}]
[{"$f":"МатЛист[[#This Row],[Комплектующее]]","v":"Модуль питания ЮТКБ.687254.702"},"13807","13820","шт",{"$f":"SUMIF(Приходы!A:A,Всего[[#This Row],[Комплектующее]],Приходы!B:B)-(SUM(Проекты!D:D)*МатЛист[[#This Row],[Кол-во]])","v":0},0.88,{"$f":"Всего[[#This Row],[Цена]]*Всего[[#This Row],[Кол-во]]","v":0},{"$f":"Всего[[#This Row],[Кол-во]]/МатЛист[[#This Row],[Кол-во]]","v":0}]

{"sheet":"Приходы","index":3,"n_rows":7,"n_cols":8,"rows_kept":7,"cut":false,"hidden":false,"merged":[]}
["Наименование","Кол.","ЕД","Дата прихода","Код 1С","Артикул","Цена","Сумма"]
["Гайка М4 DIN 439",1,{"$f":"VLOOKUP(Пришло[[#This Row],[Наименование]],Всего[],4,FALSE)","v":"шт"},"2020-03-01T00:43:46",{"$f":"VLOOKUP(Пришло[[#This Row],[Наименование]],Всего[],2,FALSE)","v":"13779"},{"$f":"VLOOKUP(Пришло[[#This Row],[Наименование]],Всего[],3,FALSE)","v":" "},{"$f":"VLOOKUP(Пришло[[#This Row],[Наименование]],Всего[],6,FALSE)","v":0.49},{"$f":"Пришло[[#This Row],[Кол.]]*Пришло[[#This Row],[Цена]]","v":0.49}]
["Гайка М4 DIN 439",2,{"$f":"VLOOKUP(Пришло[[#This Row],[Наименование]],Всего[],4,FALSE)","v":"шт"},"2020-03-01T00:44:36",{"$f":"VLOOKUP(Пришло[[#This Row],[Наименование]],Всего[],2,FALSE)","v":"13779"},{"$f":"VLOOKUP(Пришло[[#This Row],[Наименование]],Всего[],3,FALSE)","v":" "},{"$f":"VLOOKUP(Пришло[[#This Row],[Наименование]],Всего[],6,FALSE)","v":0.49},{"$f":"Пришло[[#This Row],[Кол.]]*Пришло[[#This Row],[Цена]]","v":0.98}]
["Кабель FRC-20 плоский",1211,{"$f":"VLOOKUP(Пришло[[#This Row],[Наименование]],Всего[],4,FALSE)","v":"м"},"2020-03-01T17:14:37",{"$f":"VLOOKUP(Пришло[[#This Row],[Наименование]],Всего[],2,FALSE)","v":"12673"},{"$f":"VLOOKUP(Пришло[[#This Row],[Наименование]],Всего[],3,FALSE)","v":"FRC-20"},{"$f":"VLOOKUP(Пришло[[#This Row],[Наименование]],Всего[],6,FALSE)","v":34.33},{"$f":"Пришло[[#This Row],[Кол.]]*Пришло[[#This Row],[Цена]]","v":41573.629999999997}]
["Соединитель  электрический BLZP 5.08HC/06/180F SN OR BX",15,{"$f":"VLOOKUP(Пришло[[#This Row],[Наименование]],Всего[],4,FALSE)","v":"шт"},"2020-03-01T18:29:40",{"$f":"VLOOKUP(Пришло[[#This Row],[Наименование]],Всего[],2,FALSE)","v":"13624"},{"$f":"VLOOKUP(Пришло[[#This Row],[Наименование]],Всего[],3,FALSE)","v":"1606660000"},{"$f":"VLOOKUP(Пришло[[#This Row],[Наименование]],Всего[],6,FALSE)","v":41.33},{"$f":"Пришло[[#This Row],[Кол.]]*Пришло[[#This Row],[Цена]]","v":619.94999999999993}]
["Гайка М4 DIN 439",100,{"$f":"VLOOKUP(Пришло[[#This Row],[Наименование]],Всего[],4,FALSE)","v":"шт"},"2020-03-04T22:35:05",{"$f":"VLOOKUP(Пришло[[#This Row],[Наименование]],Всего[],2,FALSE)","v":"13779"},{"$f":"VLOOKUP(Пришло[[#This Row],[Наименование]],Всего[],3,FALSE)","v":" "},{"$f":"VLOOKUP(Пришло[[#This Row],[Наименование]],Всего[],6,FALSE)","v":0.49},{"$f":"Пришло[[#This Row],[Кол.]]*Пришло[[#This Row],[Цена]]","v":49}]
["Гайка М4 DIN 439",11,{"$f":"VLOOKUP(Пришло[[#This Row],[Наименование]],Всего[],4,FALSE)","v":"шт"},"2020-03-05T21:03:35",{"$f":"VLOOKUP(Пришло[[#This Row],[Наименование]],Всего[],2,FALSE)","v":"13779"},{"$f":"VLOOKUP(Пришло[[#This Row],[Наименование]],Всего[],3,FALSE)","v":" "},{"$f":"VLOOKUP(Пришло[[#This Row],[Наименование]],Всего[],6,FALSE)","v":0.49},{"$f":"Пришло[[#This Row],[Кол.]]*Пришло[[#This Row],[Цена]]","v":5.39}]

{"sheet":"Проекты","index":4,"n_rows":1,"n_cols":5,"rows_kept":1,"cut":false,"hidden":false,"merged":[]}
["Задача в Jira","Проект","Устройство","Количество","Дата отгрузки"]

{"sheet":"Вспомогательный","index":5,"n_rows":3,"n_cols":1,"rows_kept":3,"cut":false,"hidden":false,"merged":[]}
["Устройства"]
["ЮНИТ-ДЗ"]
["БПТН"]